[Event "*** Titled Tuesday 3|2 Blitz"]
[Site "Chess.com"]
[Date "2015.06.02"]
[Round "4"]
[White "jcibarra"]
[Black "Tilicheev_Viacheslav"]
[Result "1/2-1/2"]
[WhiteElo "2538"]
[BlackElo "2426"]
[TimeControl "180+2"]
[EndTime "11:41:55 PDT"]
[Termination "Game drawn by agreement"]

1. e4 {[%clk 0:03:01.9]} 1... c5 {[%clk 0:03:00.9]} 2. c3 {[%clk 0:03:00]} 2...
Nf6 {[%clk 0:03:01.4]} 3. e5 {[%clk 0:03:00.8]} 3... Nd5 {[%clk 0:03:02.7]} 4.
d4 {[%clk 0:03:01.9]} 4... cxd4 {[%clk 0:03:03.8]} 5. Nf3 {[%clk 0:03:03]} 5...
Nc6 {[%clk 0:03:04.8]} 6. cxd4 {[%clk 0:03:03.3]} 6... d6 {[%clk 0:03:05.5]} 7.
Bc4 {[%clk 0:03:03.7]} 7... Nb6 {[%clk 0:03:06.4]} 8. Bb5 {[%clk 0:03:03.2]}
8... dxe5 {[%clk 0:03:07.6]} 9. Nxe5 {[%clk 0:03:04]} 9... Bd7 {[%clk
0:03:08.8]} 10. Nxd7 {[%clk 0:03:04.9]} 10... Qxd7 {[%clk 0:03:10.5]} 11. Nc3
{[%clk 0:03:06.1]} 11... Rd8 {[%clk 0:03:11]} 12. Be3 {[%clk 0:03:03.3]} 12...
a6 {[%clk 0:03:11.5]} 13. Bxc6 {[%clk 0:02:27.5]} 13... Qxc6 {[%clk 0:03:13.4]}
14. O-O {[%clk 0:02:29]} 14... g6 {[%clk 0:03:10.6]} 15. Rc1 {[%clk 0:02:18.4]}
15... Bg7 {[%clk 0:03:09.1]} 16. Qb3 {[%clk 0:02:17.2]} 16... Nd5 {[%clk
0:03:07.2]} 17. Ne4 {[%clk 0:02:10.1]} 17... Qb5 {[%clk 0:03:08]} 18. Qxb5+
{[%clk 0:01:48.8]} 18... axb5 {[%clk 0:03:09.9]} 19. a3 {[%clk 0:01:46.9]} 19...
O-O {[%clk 0:03:07.4]} 20. Rc5 {[%clk 0:01:47.2]} 20... b4 {[%clk 0:02:59.2]}
21. axb4 {[%clk 0:01:46.2]} 21... Nxb4 {[%clk 0:03:01.1]} 22. Rb5 {[%clk
0:01:44.2]} 22... Nc2 {[%clk 0:02:58.5]} 23. Rxb7 {[%clk 0:01:42.5]} 23... Nxd4
{[%clk 0:02:56.2]} 24. Rxe7 {[%clk 0:01:40.3]} 24... Nf5 {[%clk 0:02:54.3]} 25.
Rb7 {[%clk 0:01:38]} 25... Rb8 {[%clk 0:02:52.7]} 1/2-1/2

[Event "*** Titled Tuesday 3|2 Blitz"]
[Site "Chess.com"]
[Date "2015.06.02"]
[Round "4"]
[White "Konavets"]
[Black "Dlugy"]
[Result "1-0"]
[WhiteElo "2443"]
[BlackElo "2548"]
[TimeControl "180+2"]
[EndTime "11:42:18 PDT"]
[Termination "Konavets won by resignation"]

1. e4 {[%clk 0:03:01.9]} 1... c5 {[%clk 0:03:00.2]} 2. Nf3 {[%clk 0:03:02.2]}
2... d6 {[%clk 0:03:01.7]} 3. d4 {[%clk 0:03:03]} 3... cxd4 {[%clk 0:03:03.3]}
4. Nxd4 {[%clk 0:03:04.9]} 4... Nf6 {[%clk 0:03:04.9]} 5. Nc3 {[%clk 0:03:06.4]}
5... Nc6 {[%clk 0:03:06.5]} 6. Bg5 {[%clk 0:03:07.1]} 6... e6 {[%clk 0:03:07.9]}
7. Qd3 {[%clk 0:03:08.5]} 7... a6 {[%clk 0:03:09.5]} 8. O-O-O {[%clk 0:03:09.5]}
8... Bd7 {[%clk 0:03:08.2]} 9. f4 {[%clk 0:03:09.9]} 9... Be7 {[%clk 0:03:05.6]}
10. Nf3 {[%clk 0:03:03.1]} 10... Qc7 {[%clk 0:03:04.4]} 11. e5 {[%clk
0:02:54.6]} 11... dxe5 {[%clk 0:02:56]} 12. fxe5 {[%clk 0:01:49.1]} 12... Ng4
{[%clk 0:02:30.9]} 13. Bxe7 {[%clk 0:01:49.5]} 13... Nxe7 {[%clk 0:02:31.8]} 14.
Qd4 {[%clk 0:01:51]} 14... h5 {[%clk 0:02:29.4]} 15. Ne4 {[%clk 0:01:52.2]}
15... Nf5 {[%clk 0:02:30.5]} 16. Nd6+ {[%clk 0:01:45.1]} 16... Qxd6 {[%clk
0:02:25.8]} 17. exd6 {[%clk 0:01:17.5]} 17... Nxd4 {[%clk 0:02:26.9]} 18. Rxd4
{[%clk 0:01:19.4]} 18... Bc6 {[%clk 0:02:13.7]} 19. h3 {[%clk 0:01:14.6]} 19...
Bxf3 {[%clk 0:02:13.1]} 20. hxg4 {[%clk 0:01:15.7]} 20... Bxg4 {[%clk
0:02:13.7]} 21. Rxg4 {[%clk 0:01:16.5]} 21... g5 {[%clk 0:02:07.2]} 22. Rxg5
{[%clk 0:01:17.4]} 1-0

[Event "*** Titled Tuesday 3|2 Blitz"]
[Site "Chess.com"]
[Date "2015.06.02"]
[Round "4"]
[White "Imre91"]
[Black "DanielNaroditsky"]
[Result "0-1"]
[WhiteElo "2551"]
[BlackElo "2556"]
[TimeControl "180+2"]
[EndTime "11:43:26 PDT"]
[Termination "DanielNaroditsky won by resignation"]

1. d4 {[%clk 0:03:01.9]} 1... Nf6 {[%clk 0:03:00.5]} 2. Nf3 {[%clk 0:03:02.4]}
2... d5 {[%clk 0:03:01]} 3. c4 {[%clk 0:03:03]} 3... e6 {[%clk 0:03:02.4]} 4. g3
{[%clk 0:03:02.7]} 4... Bb4+ {[%clk 0:03:02.5]} 5. Bd2 {[%clk 0:03:03.4]} 5...
Bd6 {[%clk 0:03:03.3]} 6. Bg2 {[%clk 0:03:04]} 6... c6 {[%clk 0:03:00]} 7. Qc2
{[%clk 0:03:03.4]} 7... Nbd7 {[%clk 0:02:59.9]} 8. O-O {[%clk 0:03:04.5]} 8...
O-O {[%clk 0:02:58.6]} 9. Rd1 {[%clk 0:03:04.3]} 9... Ne4 {[%clk 0:02:59.4]} 10.
Nc3 {[%clk 0:03:02.2]} 10... f5 {[%clk 0:02:53.7]} 11. Rab1 {[%clk 0:02:56.8]}
11... b6 {[%clk 0:02:54.1]} 12. b4 {[%clk 0:02:57.4]} 12... b5 {[%clk
0:02:46.2]} 13. c5 {[%clk 0:02:54.8]} 13... Bc7 {[%clk 0:02:44.3]} 14. a4 {[%clk
0:02:56.3]} 14... a6 {[%clk 0:02:44.9]} 15. Bf4 {[%clk 0:02:57.2]} 15... Bxf4
{[%clk 0:02:23.7]} 16. gxf4 {[%clk 0:02:57.5]} 16... Kh8 {[%clk 0:02:18.8]} 17.
Rb3 {[%clk 0:02:47.7]} 17... bxa4 {[%clk 0:01:50.5]} 18. Nxa4 {[%clk 0:02:43.9]}
18... Qc7 {[%clk 0:01:51.8]} 19. Ne5 {[%clk 0:02:39.7]} 19... Nef6 {[%clk
0:01:34.5]} 20. Nc3 {[%clk 0:02:34.5]} 20... Rb8 {[%clk 0:01:33.3]} 21. Ra1
{[%clk 0:02:31]} 21... Nxe5 {[%clk 0:01:32]} 22. fxe5 {[%clk 0:02:29.6]} 22...
Nh5 {[%clk 0:01:33.3]} 23. Qd2 {[%clk 0:02:17.5]} 23... Qe7 {[%clk 0:01:26.4]}
24. Nd1 {[%clk 0:02:09.9]} 24... g5 {[%clk 0:01:25.3]} 25. e3 {[%clk 0:02:04.4]}
25... g4 {[%clk 0:01:26.5]} 26. f4 {[%clk 0:01:54.2]} 26... gxf3 {[%clk
0:01:26.2]} 27. Bxf3 {[%clk 0:01:55.2]} 27... Rg8+ {[%clk 0:01:24.7]} 28. Kh1
{[%clk 0:01:50]} 28... Qh4 {[%clk 0:01:12.9]} 29. Bxh5 {[%clk 0:01:49.6]} 29...
Qe4+ {[%clk 0:01:12.7]} 0-1

[Event "*** Titled Tuesday 3|2 Blitz"]
[Site "Chess.com"]
[Date "2015.06.02"]
[Round "4"]
[White "zmaj23"]
[Black "Daniel_Fridman"]
[Result "1-0"]
[WhiteElo "2422"]
[BlackElo "2535"]
[TimeControl "180+2"]
[EndTime "11:43:36 PDT"]
[Termination "zmaj23 won by resignation"]

1. e4 {[%clk 0:03:01.9]} 1... c6 {[%clk 0:02:58.8]} 2. Nc3 {[%clk 0:03:02.3]}
2... d5 {[%clk 0:02:59.6]} 3. Nf3 {[%clk 0:03:04.2]} 3... Bg4 {[%clk 0:03:00.5]}
4. h3 {[%clk 0:03:04.6]} 4... Bh5 {[%clk 0:03:01.6]} 5. exd5 {[%clk 0:03:04.1]}
5... cxd5 {[%clk 0:03:02.6]} 6. g4 {[%clk 0:03:03.2]} 6... Bg6 {[%clk 0:03:03]}
7. Bb5+ {[%clk 0:03:05.1]} 7... Nc6 {[%clk 0:03:04]} 8. Ne5 {[%clk 0:03:05.6]}
8... Rc8 {[%clk 0:02:58.9]} 9. d4 {[%clk 0:03:07]} 9... e6 {[%clk 0:02:58]} 10.
h4 {[%clk 0:03:05.2]} 10... f6 {[%clk 0:02:46.6]} 11. Nxg6 {[%clk 0:03:05.5]}
11... hxg6 {[%clk 0:02:47.1]} 12. Qd3 {[%clk 0:03:07.4]} 12... Kf7 {[%clk
0:02:43.9]} 13. h5 {[%clk 0:03:08.5]} 13... gxh5 {[%clk 0:02:42.7]} 14. gxh5
{[%clk 0:03:09.8]} 14... Nge7 {[%clk 0:02:38.4]} 15. Bxc6 {[%clk 0:03:10.4]}
15... Rxc6 {[%clk 0:02:38.1]} 16. Ne2 {[%clk 0:03:07.6]} 16... Qd7 {[%clk
0:02:12.6]} 17. Nf4 {[%clk 0:03:05]} 17... Kg8 {[%clk 0:01:51.9]} 18. Bd2 {[%clk
0:03:03.1]} 18... e5 {[%clk 0:01:51.9]} 19. Ng6 {[%clk 0:03:00]} 19... Nxg6
{[%clk 0:01:52]} 20. Qxg6 {[%clk 0:03:01.9]} 20... Qf7 {[%clk 0:01:47.4]} 21.
O-O-O {[%clk 0:02:57.4]} 21... Qxg6 {[%clk 0:01:44.9]} 22. hxg6 {[%clk
0:02:57.2]} 22... Rxh1 {[%clk 0:01:46.8]} 23. Rxh1 {[%clk 0:02:57.1]} 23... exd4
{[%clk 0:01:48.3]} 24. Rh5 {[%clk 0:02:53.7]} 24... d3 {[%clk 0:01:45.5]} 25. c3
{[%clk 0:02:53.1]} 25... d4 {[%clk 0:01:46.9]} 26. Rd5 {[%clk 0:02:53.2]} 26...
dxc3 {[%clk 0:01:47.3]} 27. Bxc3 {[%clk 0:02:54.8]} 27... f5 {[%clk 0:01:30.1]}
28. Rd8 {[%clk 0:02:44.5]} 28... Rxg6 {[%clk 0:01:20.5]} 29. Bb4 {[%clk
0:02:45.6]} 29... Rf6 {[%clk 0:01:16.8]} 30. Kd2 {[%clk 0:02:46.8]} 30... g5
{[%clk 0:01:16.7]} 31. Kxd3 {[%clk 0:02:45.7]} 31... g4 {[%clk 0:01:18]} 32. Kd4
{[%clk 0:02:45]} 32... f4 {[%clk 0:01:10.6]} 33. Ke5 {[%clk 0:02:43.3]} 33...
Rf7 {[%clk 0:00:58.8]} 34. Bxf8 {[%clk 0:02:40.9]} 1-0

[Event "*** Titled Tuesday 3|2 Blitz"]
[Site "Chess.com"]
[Date "2015.06.02"]
[Round "4"]
[White "Yaacovn"]
[Black "Tirantes"]
[Result "0-1"]
[WhiteElo "2537"]
[BlackElo "2182"]
[TimeControl "180+2"]
[EndTime "11:43:37 PDT"]
[Termination "Tirantes won by resignation"]

1. d4 {[%clk 0:03:01.3]} 1... d5 {[%clk 0:02:59.7]} 2. Nf3 {[%clk 0:03:01.9]}
2... Nf6 {[%clk 0:02:59.1]} 3. c4 {[%clk 0:03:02.8]} 3... e6 {[%clk 0:02:59.2]}
4. Nc3 {[%clk 0:03:03.5]} 4... Be7 {[%clk 0:02:59.7]} 5. Bg5 {[%clk 0:03:04.5]}
5... O-O {[%clk 0:02:59.3]} 6. e3 {[%clk 0:03:05.4]} 6... h6 {[%clk 0:03:00]} 7.
Bh4 {[%clk 0:03:05.7]} 7... b6 {[%clk 0:03:00.6]} 8. cxd5 {[%clk 0:03:05.8]}
8... Nxd5 {[%clk 0:02:57.7]} 9. Bxe7 {[%clk 0:03:06.9]} 9... Qxe7 {[%clk
0:02:58.4]} 10. Rc1 {[%clk 0:03:08.1]} 10... Bb7 {[%clk 0:02:55.5]} 11. Bc4
{[%clk 0:03:08.7]} 11... Nd7 {[%clk 0:02:43.4]} 12. Bxd5 {[%clk 0:02:59.6]}
12... exd5 {[%clk 0:02:41.9]} 13. O-O {[%clk 0:03:00.9]} 13... Rfd8 {[%clk
0:02:37.9]} 14. Qb3 {[%clk 0:02:58.9]} 14... Nf6 {[%clk 0:02:24.7]} 15. Ne5
{[%clk 0:02:58.7]} 15... c5 {[%clk 0:02:20.5]} 16. Qa3 {[%clk 0:02:59.5]} 16...
Kf8 {[%clk 0:02:12.4]} 17. Na4 {[%clk 0:02:58]} 17... Rac8 {[%clk 0:02:02]} 18.
f4 {[%clk 0:02:57.5]} 18... cxd4 {[%clk 0:01:46.7]} 19. Qxe7+ {[%clk 0:02:57.7]}
19... Kxe7 {[%clk 0:01:47]} 20. exd4 {[%clk 0:02:59.3]} 20... Ne4 {[%clk
0:01:41.7]} 21. f5 {[%clk 0:02:56.4]} 21... f6 {[%clk 0:01:29.9]} 22. Ng6+
{[%clk 0:02:57.3]} 22... Kd6 {[%clk 0:01:26.8]} 23. Nf4 {[%clk 0:02:54.3]} 23...
Re8 {[%clk 0:01:09.2]} 24. Rfe1 {[%clk 0:02:41.2]} 24... Re7 {[%clk 0:01:01.8]}
25. Rxc8 {[%clk 0:02:40.4]} 25... Bxc8 {[%clk 0:01:00.9]} 26. Nc3 {[%clk
0:02:41.6]} 26... Bxf5 {[%clk 0:00:47.6]} 27. Ncxd5 {[%clk 0:02:41.9]} 27... Re8
{[%clk 0:00:44.9]} 28. Ne3 {[%clk 0:02:40.6]} 28... Bh7 {[%clk 0:00:40.8]} 29.
Nc4+ {[%clk 0:02:41.4]} 29... Kd7 {[%clk 0:00:39.9]} 30. d5 {[%clk 0:02:39.8]}
30... Nd6 {[%clk 0:00:34.4]} 31. Rxe8 {[%clk 0:02:39.6]} 31... Nxe8 {[%clk
0:00:34.5]} 32. Kf2 {[%clk 0:02:40.7]} 32... Bg8 {[%clk 0:00:30.8]} 33. Ne3
{[%clk 0:02:40.2]} 33... Kd6 {[%clk 0:00:29.1]} 34. Kf3 {[%clk 0:02:37.5]} 34...
Ke5 {[%clk 0:00:29.6]} 35. Nf5 {[%clk 0:02:37.4]} 35... Kxf5 {[%clk 0:00:29.5]}
0-1

[Event "*** Titled Tuesday 3|2 Blitz"]
[Site "Chess.com"]
[Date "2015.06.02"]
[Round "4"]
[White "Malev212"]
[Black "patzerplay"]
[Result "1-0"]
[WhiteElo "2221"]
[BlackElo "2174"]
[TimeControl "180+2"]
[EndTime "11:43:51 PDT"]
[Termination "Malev212 won by resignation"]

1. Nf3 {[%clk 0:02:57.3]} 1... Nf6 {[%clk 0:03:00.6]} 2. b3 {[%clk 0:02:57.1]}
2... g6 {[%clk 0:03:00.8]} 3. Bb2 {[%clk 0:02:55.9]} 3... Bg7 {[%clk 0:03:02.4]}
4. g3 {[%clk 0:02:55.8]} 4... O-O {[%clk 0:03:03.5]} 5. Bg2 {[%clk 0:02:56.6]}
5... d5 {[%clk 0:03:05.2]} 6. c4 {[%clk 0:02:55.8]} 6... e6 {[%clk 0:03:06.5]}
7. O-O {[%clk 0:02:55.2]} 7... c5 {[%clk 0:03:07.7]} 8. e3 {[%clk 0:02:55.3]}
8... b6 {[%clk 0:03:08.2]} 9. Nc3 {[%clk 0:02:54]} 9... Bb7 {[%clk 0:03:09.1]}
10. Rc1 {[%clk 0:02:53.1]} 10... Nc6 {[%clk 0:03:03.9]} 11. cxd5 {[%clk
0:02:29]} 11... exd5 {[%clk 0:03:02.2]} 12. d4 {[%clk 0:02:26.3]} 12... Qe7
{[%clk 0:03:00.6]} 13. Ne2 {[%clk 0:02:22.2]} 13... Rfd8 {[%clk 0:02:41.8]} 14.
Re1 {[%clk 0:02:20.8]} 14... Rac8 {[%clk 0:02:42.2]} 15. Nf4 {[%clk 0:02:19.6]}
15... Ne4 {[%clk 0:02:42.3]} 16. Qe2 {[%clk 0:02:01.1]} 16... a5 {[%clk
0:02:30.5]} 17. dxc5 {[%clk 0:01:58.6]} 17... bxc5 {[%clk 0:02:32.4]} 18. Bxg7
{[%clk 0:01:57.9]} 18... Kxg7 {[%clk 0:02:34.3]} 19. Red1 {[%clk 0:01:57.6]}
19... Nb4 {[%clk 0:02:14.9]} 20. a3 {[%clk 0:01:54.9]} 20... Na6 {[%clk
0:01:59.3]} 21. Qb5 {[%clk 0:01:43]} 21... Qc7 {[%clk 0:01:31.8]} 22. h4 {[%clk
0:01:37.8]} 22... Nf6 {[%clk 0:01:25.9]} 23. Ng5 {[%clk 0:01:36.4]} 23... Rd6
{[%clk 0:01:19.7]} 24. e4 {[%clk 0:01:31.7]} 24... dxe4 {[%clk 0:01:16]} 25.
Rxd6 {[%clk 0:01:30.7]} 25... Qxd6 {[%clk 0:01:15.7]} 26. Qxb7 {[%clk
0:01:30.9]} 26... Rb8 {[%clk 0:01:16.6]} 27. Qxf7+ {[%clk 0:01:29.3]} 27... Kh8
{[%clk 0:01:16.9]} 28. Nfe6 {[%clk 0:01:28.6]} 1-0

[Event "*** Titled Tuesday 3|2 Blitz"]
[Site "Chess.com"]
[Date "2015.06.02"]
[Round "4"]
[White "pedromartinez91"]
[Black "Tal-Baronfew"]
[Result "0-1"]
[WhiteElo "2127"]
[BlackElo "2651"]
[TimeControl "180+2"]
[EndTime "11:44:30 PDT"]
[Termination "Tal-Baronfew won by resignation"]

1. Nf3 {[%clk 0:03:01.9]} 1... Nf6 {[%clk 0:02:58.1]} 2. g3 {[%clk 0:03:02.8]}
2... c5 {[%clk 0:02:57.2]} 3. Bg2 {[%clk 0:03:03.8]} 3... Nc6 {[%clk 0:02:58.2]}
4. O-O {[%clk 0:03:04.5]} 4... e5 {[%clk 0:02:58.2]} 5. c4 {[%clk 0:03:02.4]}
5... d5 {[%clk 0:02:59]} 6. cxd5 {[%clk 0:03:02.8]} 6... Nxd5 {[%clk 0:03:00.9]}
7. Nc3 {[%clk 0:03:04.1]} 7... Nc7 {[%clk 0:02:58]} 8. d3 {[%clk 0:03:03.1]}
8... Be7 {[%clk 0:02:56.9]} 9. Nd2 {[%clk 0:02:57]} 9... O-O {[%clk 0:02:57.1]}
10. Nc4 {[%clk 0:02:57.6]} 10... f6 {[%clk 0:02:57.8]} 11. a4 {[%clk 0:02:57.8]}
11... Be6 {[%clk 0:02:55.2]} 12. a5 {[%clk 0:02:52.7]} 12... Qd7 {[%clk
0:02:55.3]} 13. Qa4 {[%clk 0:02:52]} 13... Rab8 {[%clk 0:02:48]} 14. Be3 {[%clk
0:02:51.3]} 14... Rfd8 {[%clk 0:02:41.7]} 15. Rfc1 {[%clk 0:02:51.2]} 15... Nd4
{[%clk 0:02:35.3]} 16. Qxd7 {[%clk 0:02:49.3]} 16... Rxd7 {[%clk 0:02:35.3]} 17.
Bxd4 {[%clk 0:02:44.2]} 17... exd4 {[%clk 0:02:24.5]} 18. Ne4 {[%clk 0:02:42.3]}
18... f5 {[%clk 0:02:09.2]} 19. Ned2 {[%clk 0:02:41.5]} 19... Bf6 {[%clk
0:01:53.9]} 20. Nf3 {[%clk 0:02:41.4]} 20... Re7 {[%clk 0:01:47]} 21. Nce5
{[%clk 0:02:38.5]} 21... Na6 {[%clk 0:01:42.5]} 22. Nc4 {[%clk 0:02:30.4]} 22...
Bxc4 {[%clk 0:01:38.3]} 23. Rxc4 {[%clk 0:02:14]} 23... Rxe2 {[%clk 0:01:39.7]}
24. Rb1 {[%clk 0:02:06.3]} 24... b5 {[%clk 0:01:34.2]} 25. axb6 {[%clk
0:02:02.9]} 25... axb6 {[%clk 0:01:35.9]} 26. Bf1 {[%clk 0:02:03.4]} 26... Re7
{[%clk 0:01:30.9]} 27. Bh3 {[%clk 0:02:03.6]} 27... g6 {[%clk 0:01:31.3]} 28. g4
{[%clk 0:02:04.2]} 28... fxg4 {[%clk 0:01:31.1]} 29. Bxg4 {[%clk 0:02:05.2]}
29... Nb4 {[%clk 0:01:28.7]} 30. Rd1 {[%clk 0:02:05.3]} 30... h5 {[%clk
0:01:27.6]} 31. Bh3 {[%clk 0:02:05]} 31... Rbe8 {[%clk 0:01:27.6]} 32. Bf1
{[%clk 0:02:05.1]} 32... g5 {[%clk 0:01:25.9]} 33. Nd2 {[%clk 0:02:04.3]} 33...
Re1 {[%clk 0:01:24.4]} 34. Rxe1 {[%clk 0:02:05]} 34... Rxe1 {[%clk 0:01:26.2]}
35. Ne4 {[%clk 0:02:05.2]} 35... Be7 {[%clk 0:01:27.5]} 36. Kg2 {[%clk 0:01:58]}
36... g4 {[%clk 0:01:15.5]} 37. f4 {[%clk 0:01:49.5]} 37... gxf3+ {[%clk
0:01:11.1]} 38. Kf2 {[%clk 0:01:50.6]} 38... Rb1 {[%clk 0:01:07.4]} 39. Bh3
{[%clk 0:01:49.8]} 39... b5 {[%clk 0:01:02.2]} 40. Be6+ {[%clk 0:01:50.5]} 40...
Kf8 {[%clk 0:01:00.2]} 41. Rxc5 {[%clk 0:01:48.6]} 41... Nxd3+ {[%clk
0:01:01.4]} 42. Kxf3 {[%clk 0:01:48.6]} 42... Nxc5 {[%clk 0:01:02.7]} 0-1

[Event "*** Titled Tuesday 3|2 Blitz"]
[Site "Chess.com"]
[Date "2015.06.02"]
[Round "4"]
[White "chesswooog"]
[Black "SGQ"]
[Result "1-0"]
[WhiteElo "2043"]
[BlackElo "1929"]
[TimeControl "180+2"]
[EndTime "11:44:33 PDT"]
[Termination "chesswooog won by checkmate"]

1. e4 {[%clk 0:02:19.4]} 1... c5 {[%clk 0:02:56.7]} 2. d4 {[%clk 0:02:20.3]}
2... cxd4 {[%clk 0:02:57.3]} 3. c3 {[%clk 0:02:22]} 3... dxc3 {[%clk 0:02:57.4]}
4. Nxc3 {[%clk 0:02:23.9]} 4... e6 {[%clk 0:02:58.4]} 5. Nf3 {[%clk 0:02:24]}
5... a6 {[%clk 0:02:59.4]} 6. a4 {[%clk 0:02:24.2]} 6... Nc6 {[%clk 0:02:48.5]}
7. Bc4 {[%clk 0:02:24.6]} 7... Bb4 {[%clk 0:02:43.1]} 8. O-O {[%clk 0:02:24.9]}
8... Nge7 {[%clk 0:02:32.1]} 9. Bf4 {[%clk 0:02:14.6]} 9... O-O {[%clk
0:02:31.2]} 10. Qe2 {[%clk 0:02:14.8]} 10... Ng6 {[%clk 0:02:29.9]} 11. Bg3
{[%clk 0:02:15.5]} 11... Qa5 {[%clk 0:02:13]} 12. Rfd1 {[%clk 0:02:08.9]} 12...
Bxc3 {[%clk 0:01:58.5]} 13. bxc3 {[%clk 0:02:09.4]} 13... Qxc3 {[%clk
0:01:56.4]} 14. h4 {[%clk 0:02:10.7]} 14... e5 {[%clk 0:01:28.3]} 15. h5 {[%clk
0:02:04.7]} 15... Nf4 {[%clk 0:01:29.1]} 16. Bxf4 {[%clk 0:02:04.1]} 16... exf4
{[%clk 0:01:30.4]} 17. h6 {[%clk 0:02:04.9]} 17... gxh6 {[%clk 0:01:28.8]} 18.
e5 {[%clk 0:01:52.4]} 18... Re8 {[%clk 0:01:19.3]} 19. Rac1 {[%clk 0:01:43.5]}
19... Qa5 {[%clk 0:01:14.6]} 20. Rd5 {[%clk 0:01:37]} 20... Qxa4 {[%clk
0:01:08.1]} 21. Qe4 {[%clk 0:01:37.7]} 21... Ne7 {[%clk 0:01:02.2]} 22. Rd6
{[%clk 0:01:26.2]} 22... Ng6 {[%clk 0:01:02]} 23. Rxg6+ {[%clk 0:00:56.5]} 23...
hxg6 {[%clk 0:01:00.2]} 24. Qxg6+ {[%clk 0:00:57.4]} 24... Kh8 {[%clk
0:01:00.7]} 25. Qxh6+ {[%clk 0:00:57.8]} 25... Kg8 {[%clk 0:01:01.7]} 26. Qg6+
{[%clk 0:00:58.3]} 26... Kh8 {[%clk 0:01:02.3]} 27. Bxf7 {[%clk 0:00:59]} 27...
Re6 {[%clk 0:00:42.1]} 28. Qg8# {[%clk 0:00:59.2]} 1-0

[Event "*** Titled Tuesday 3|2 Blitz"]
[Site "Chess.com"]
[Date "2015.06.02"]
[Round "4"]
[White "lexiel"]
[Black "Theladies"]
[Result "1-0"]
[WhiteElo "1924"]
[BlackElo "1745"]
[TimeControl "180+2"]
[EndTime "11:45:28 PDT"]
[Termination "lexiel won by checkmate"]

1. d4 {[%clk 0:03:01.9]} 1... Nf6 {[%clk 0:02:58.2]} 2. Nf3 {[%clk 0:03:00.7]}
2... g6 {[%clk 0:02:58.3]} 3. e3 {[%clk 0:02:57.8]} 3... Bg7 {[%clk 0:02:58.7]}
4. c4 {[%clk 0:02:59]} 4... O-O {[%clk 0:02:57.7]} 5. Nc3 {[%clk 0:03:00.1]}
5... d5 {[%clk 0:02:50.1]} 6. cxd5 {[%clk 0:02:51.2]} 6... Nxd5 {[%clk 0:02:52]}
7. Be2 {[%clk 0:02:52.3]} 7... c5 {[%clk 0:02:51.6]} 8. O-O {[%clk 0:02:52.9]}
8... Nc6 {[%clk 0:02:49.5]} 9. h3 {[%clk 0:02:53.1]} 9... cxd4 {[%clk
0:02:50.2]} 10. exd4 {[%clk 0:02:54]} 10... h6 {[%clk 0:02:46.5]} 11. Ne4 {[%clk
0:02:55]} 11... Kh7 {[%clk 0:02:39.3]} 12. Be3 {[%clk 0:02:51.9]} 12... b6
{[%clk 0:02:39]} 13. Rc1 {[%clk 0:02:51.4]} 13... Bb7 {[%clk 0:02:39.8]} 14. a3
{[%clk 0:02:51.3]} 14... Rc8 {[%clk 0:02:39.1]} 15. Bd3 {[%clk 0:02:47.4]} 15...
Qd7 {[%clk 0:02:29.9]} 16. Re1 {[%clk 0:02:47.7]} 16... Rfd8 {[%clk 0:02:27.6]}
17. Bf1 {[%clk 0:02:47.8]} 17... Nxe3 {[%clk 0:02:25.1]} 18. fxe3 {[%clk
0:02:48.6]} 18... e5 {[%clk 0:02:26.4]} 19. Bb5 {[%clk 0:02:40.9]} 19... exd4
{[%clk 0:02:03.8]} 20. exd4 {[%clk 0:02:39.8]} 20... Qd5 {[%clk 0:02:02.6]} 21.
Bc4 {[%clk 0:02:38.5]} 21... Qf5 {[%clk 0:01:36.2]} 22. Ng3 {[%clk 0:02:35.9]}
22... Qf4 {[%clk 0:01:12.4]} 23. Ne2 {[%clk 0:02:32.8]} 23... Qf6 {[%clk
0:01:00]} 24. Qa4 {[%clk 0:02:22.6]} 24... Na5 {[%clk 0:00:54]} 25. Ne5 {[%clk
0:02:23]} 25... Nxc4 {[%clk 0:00:54.5]} 26. Rxc4 {[%clk 0:02:23]} 26... Qg5
{[%clk 0:00:45.3]} 27. Ng4 {[%clk 0:01:54.7]} 27... b5 {[%clk 0:00:40.9]} 28.
Qxa7 {[%clk 0:01:52.9]} 28... bxc4 {[%clk 0:00:19.7]} 29. Qxb7 {[%clk
0:01:53.9]} 29... Rf8 {[%clk 0:00:19]} 30. Rf1 {[%clk 0:01:51.6]} 30... h5
{[%clk 0:00:18.1]} 31. Ne5 {[%clk 0:01:48.9]} 31... Bxe5 {[%clk 0:00:17.7]} 32.
dxe5 {[%clk 0:01:50]} 32... Qe3+ {[%clk 0:00:18.3]} 33. Rf2 {[%clk 0:01:49.3]}
33... Qxe5 {[%clk 0:00:19]} 34. Rxf7+ {[%clk 0:01:49.2]} 34... Rxf7 {[%clk
0:00:20.1]} 35. Qxf7+ {[%clk 0:01:50.5]} 35... Kh6 {[%clk 0:00:21.4]} 36. Nf4
{[%clk 0:01:49.3]} 36... Qg7 {[%clk 0:00:14.1]} 37. Qe6 {[%clk 0:01:48.4]} 37...
Rf8 {[%clk 0:00:08]} 38. Nxh5 {[%clk 0:01:49.1]} 38... Kxh5 {[%clk 0:00:05.3]}
39. Qg4+ {[%clk 0:01:49.4]} 39... Kh6 {[%clk 0:00:04.5]} 40. Qh4# {[%clk
0:01:50.6]} 1-0